[Event "Slovakian-ch Youth 2022"]
[Site "Lubovna"]
[Date "2022.05.25"]
[Round "6.16"]
[White "Kakus, Oliver"]
[Black "Kurimsky, Kristian"]
[Result "0-1"]
[ECO "A28"]
[WhiteElo "1000"]
[BlackElo "1006"]
[Annotator "NA RC COMBH"]
[PlyCount "28"]
[EventDate "2022.05.22"]
[EventCountry "SVK"]
[SourceTitle "playchess.com"]
[Source "ChessBase"]
[SourceQuality "1"]
[TimeControl "40/5400+30:1800+30"]

1. c4 {[%emt 0:00:08]} Nf6 {[%emt 0:00:34]} 2. Nc3 {[%emt 0:00:10]} e5 {[%emt 0:00:17]} 3. Nf3 {[%emt 0:00:23]} Nc6 {[%emt 0:00:12]} 4. d3 {[%emt 0:00:43]} h6 {[%emt 0:02:01]} 5. d4 {[%emt 0:00:50]} exd4 {[%emt 0:02:01]} 6. Nxd4 {[%emt 0:00:14]} Bc5 {[%emt 0:02:57]} 7. Be3 {[%emt 0:00:17]} Qe7 {[%emt 0:04:02]} 8. Nxc6 {[%emt 0:00:32]} dxc6 {[%emt 0:02:49]} 9. Bxc5 {[%emt 0:00:21]} Qxc5 {[%emt 0:00:25]} 10. Qd3 {[%emt 0:00:18]} Bf5 {[%emt 0:01:03]} 11. Qg3 {[%emt 0:00:25]} O-O-O {[%emt 0:04:57]} 12. e3 {[%emt 0:01:10]} Ne4 {[%emt 0:04:35]} 13. Nxe4 {[%emt 0:00:42]} Qb4+ {[%emt 0:03:17]} 14. Nd2 {[%emt 0:00:29]} Qxd2# {[%emt 0:00:15]} 0-1

[Event "Slovakian-ch Youth 2022"]
[Site "Lubovna"]
[Date "2022.05.25"]
[Round "6.17"]
[White "Rak, Martin"]
[Black "Paluska, Karol"]
[Result "1-0"]
[ECO "B15"]
[WhiteElo "1849"]
[BlackElo "2006"]
[Annotator "TA"]
[PlyCount "97"]
[EventDate "2022.05.22"]
[EventCountry "SVK"]
[SourceTitle "playchess.com"]
[Source "ChessBase"]
[SourceQuality "1"]
[TimeControl "40/5400+30:1800+30"]

{[%evp 16,97,48,38,59,22,32,33,70,63,96,54,73,-43,-50,-52,-62,-59,-48,-63,-25,-53,-28,-34,-25,-31,-14,-122,-88,-108,-114,-139,-134,-134,-134,-132,-128,-298,-110,-144,-95,-101,-110,-102,-103,-101,-94,-322,-317,-342,-210,-503,-196,-240,-202,-267,-86,-84,-8,-146,-141,-585,-89,-1576,0,0,0,0,0,0,0,0,200,217,544,80,29989,29990,29990,29991,29991,29992,29997,29998]} 1. e4 {[%emt 0:00:31]} c6 {[%emt 0:00:06]} 2. d4 {[%emt 0:00:09]} d5 {[%emt 0:00:21]} 3. Nc3 {[%emt 0:00:08]} dxe4 {[%emt 0:00:06]} 4. Nxe4 {[%emt 0:00:10]} Nf6 {[%emt 0:00:02]} 5. Nxf6+ {[%emt 0:00:06]} exf6 {[%emt 0:00:05]} 6. c3 {[%emt 0:00:23]} Bd6 {[%emt 0:00:20]} 7. Bd3 {[%emt 0:00:22]} Be6 {[%emt 0:04:53]} 8. Ne2 {[%emt 0:01:12]} Qc7 {[%emt 0:00:29]} 9. Qc2 {[%emt 0:05:30]} h6 {[%emt 0:06:38] B15: Caro-Kann: 3 Nc3: 3...g6 and 3...dxe4 4 Nxe4 Nf6 5 Nxf6+ exf6.} 10. Ng3 {[%emt 0:09:24]} O-O {[%emt 0:02:34]} 11. O-O {[%emt 0:07:18]} Nd7 {[%emt 0:05:38] White is slightly better.} 12. f4 {[%emt 0:05:14] [#] Black must now prevent f5.} b5 $146 {[%emt 0:08:35]} ({Predecessor:} 12... Nb6 13. c4 c5 14. d5 Bc8 15. Bd2 Re8 16. h3 Nd7 17. a4 Nf8 18. Nh5 Qd8 {1-0 (45) Khanin,S (2397)-Burmakin,V (2545) St Petersburg 2016}) 13. b3 {[%emt 0:18:36]} c5 {[%emt 0:07:36]} 14. Bxb5 {[%emt 0:09:32]} (14. Be4 $16 {aiming for f5.} cxd4 15. Bxa8 Rxa8 16. Qe4) 14... cxd4 $15 {[%emt 0:01:05]} 15. Bxd7 {[%emt 0:01:37]} Bxd7 {[%emt 0:02:17]} 16. c4 {[%emt 0:00:08]} Bc5 {[%emt 0:01:27] A strong pair of Bishops.} 17. Qd3 {[%emt 0:01:54]} Rad8 {[%emt 0:02:15][%cal Of6f5]} 18. a3 {[%emt 0:06:38]} a5 {[%emt 0:00:50]} 19. Bd2 {[%emt 0:00:58]} Rb8 {[%emt 0:05:24] Inhibits b4.} 20. Rfb1 {[%emt 0:01:58]} Bd6 {[%emt 0:03:32]} 21. Qf1 {[%emt 0:03:50]} (21. Nh5 $11) 21... Be6 $17 {[%emt 0:03:40]} 22. Ne4 {[%emt 0:02:20]} Bf5 {[%emt 0:06:41]} 23. Nxd6 {[%emt 0:01:02]} Qxd6 {[%emt 0:01:03]} (23... Bxb1 $6 24. Nb5 Rxb5 25. cxb5 $11) 24. Rb2 {[%emt 0:00:19]} d3 $1 {[%emt 0:00:31] ...Qd4+ is the strong threat.} 25. Qf2 {[%emt 0:04:49] Prevents Qd4.} Rfe8 {[%emt 0:02:00]} 26. Be3 $2 {[%emt 0:03:45]} (26. c5 $17 Qd5 27. Bxa5) 26... Bg4 $2 {[%emt 0:01:14]} (26... Re4 $19 {And now ...Rbe8 would win.} 27. b4 Rxc4) 27. c5 {[%emt 0:01:11]} Qe6 {[%emt 0:00:25]} (27... Qd5 $142 28. b4 axb4 29. axb4 Bd7) 28. h3 {[%emt 0:00:56]} Be2 {[%emt 0:00:30]} (28... Qxe3 $6 29. Qxe3 Rxe3 30. hxg4 $11) 29. Bd2 {[%emt 0:01:32]} Rxb3 {[%emt 0:00:47]} 30. Rxb3 {[%emt 0:00:18]} Qxb3 {[%emt 0:00:08]} 31. Bxa5 $2 {[%emt 0:00:22]} (31. Qd4 $17 {was the only defense.}) 31... Qb2 $19 {[%emt 0:06:12]} 32. Qe1 {[%emt 0:01:53]} Qd4+ {[%emt 0:00:13]} 33. Kh1 $2 {[%emt 0:00:05]} (33. Kh2) 33... Qxc5 $2 {[%emt 0:00:47]} (33... d2 34. Bxd2 Bb5) 34. Bb4 {[%emt 0:01:57]} Qd4 {[%emt 0:01:26]} 35. a4 {[%emt 0:01:00]} Rd8 $2 {[%emt 0:05:58]} (35... Qxf4 $2 36. Bd2 Qb8 37. Rb1 $19) (35... Re4 $19 36. Bd2 Bf3 $1 {[%mdl 512]}) 36. Bd2 $17 {[%emt 0:00:22]} g5 {[%emt 0:04:40]} (36... Rd6 $17) 37. a5 {[%emt 0:03:44]} (37. fxg5 $11 hxg5 38. a5) 37... gxf4 {[%emt 0:10:27][%cal Bg5f4,Bf4f3][%mdl 32]} 38. a6 $2 {[%emt 0:03:15][%mdl 8192]} (38. Bc3 $17 Qe4 39. Bd2) 38... Kh7 $2 {[%emt 0:00:47]} (38... f3 $19 {is more deadly.} 39. Bc3 f2) 39. a7 $2 {[%emt 0:01:40][%mdl 8192] [#]} (39. Qg1 $17 Qe5 40. a7) 39... Ra8 $2 {[%emt 0:02:58]} ({Better is} 39... f3 $1 $19 {[%cal Rf3g2]} 40. Bc3 fxg2+ 41. Kh2 g1=B+ 42. Qxg1 Qxc3) 40. Qg1 $11 {[%emt 0:01:20]} Qe4 {[%emt 0:01:16]} 41. Qf2 {[%emt 0:08:54]} Rg8 {[%emt 0:14:10][%cal Og8g2] Hoping for ...Rxg2!} 42. Kh2 {[%emt 0:09:21]} f3 $1 {[%emt 0:01:17]} 43. g3 {[%emt 0:00:46] Strongly threatening Ra6.} h5 $2 {[%emt 0:00:34]} (43... Ra8 $1 $11) 44. Ra5 $18 {[%emt 0:04:34][%mdl 1024] White has strong compensation.} f5 $2 {[%emt 0:01:02]} (44... Ra8 {is a better chance.} 45. Rxh5+ Kg7) 45. Ra6 $2 $40 {[%emt 0:00:28][%mdl 128] Black is in trouble.} ({Not} 45. Qe3 $2 Qxe3 46. Bxe3 f2 47. Bxf2 d2 $19) (45. g4 $18 {and White stays clearly on top. Intending Qh4 and mate.} Bd1 46. Rxf5) 45... Ra8 $2 {[%emt 0:02:02][%mdl 8192]} (45... Bd1 $16) 46. Rh6+ {[%emt 0:04:25] White mates.} ({But not} 46. Qe3 $2 Qxe3 47. Bxe3 d2 48. Bxd2 f2 $19) 46... Kg7 {[%emt 0:00:47]} 47. Qb6 {[%emt 0:00:26]} Qe5 {[%emt 0:02:11]} 48. Rxh5 {[%emt 0:03:03]} Bf1 {[%emt 0:04:41]} 49. Qh6+ {[%emt 0:00:19] Quite a comeback for White.  Weighted Error Value: White=0.80/Black=0.84} 1-0

[Event "Slovakian-ch Youth 2022"]
[Site "Lubovna"]
[Date "2022.05.25"]
[Round "6.18"]
[White "Jurky, Marian"]
[Black "Lovcican, Tomas"]
[Result "0-1"]
[ECO "D35"]
[WhiteElo "1689"]
[BlackElo "2024"]
[Annotator "TA"]
[PlyCount "128"]
[EventDate "2022.05.22"]
[EventCountry "SVK"]
[SourceTitle "playchess.com"]
[Source "ChessBase"]
[SourceQuality "1"]
[TimeControl "40/5400+30:1800+30"]

{[%evp 13,128,17,53,-16,-19,-43,-32,-52,-15,-33,-9,-24,-24,-20,0,0,0,-39,0,0,0,-39,-2,-9,37,-49,0,-41,1,-35,0,0,-16,-45,0,-31,-13,-25,0,0,7,-74,0,-28,-30,-33,-26,-51,-51,-82,-81,-66,-84,-101,0,-70,-66,-46,-20,-22,-21,-21,-25,-51,-45,-33,-38,-47,-13,-42,-42,-53,-28,-102,-46,-177,-183,-878,-902,-1094,-1087,-1020,-1007,-5516,-5516,-5583,-5575,-4618,-3830,-2685,-2282,-2154,-1738,-29980,-29981,-29980,-29980,-29984,-29985,-29985,-29986,-29987,-29988,-29988,-29989,-29989,-29988,-29988,-29989,-29990,-29991,-29993,-29994,-29994,-29995,-29995,-29994]} 1. d4 {[%emt 0:00:04]} d5 {[%emt 0:00:13]} 2. c4 {[%emt 0:00:05]} e6 {[%emt 0:00:06]} 3. Nc3 {[%emt 0:00:08]} Nf6 {[%emt 0:00:06]} 4. cxd5 {[%emt 0:00:08]} exd5 {[%emt 0:00:31]} 5. Bg5 {[%emt 0:00:05]} Nbd7 {[%emt 0:00:19]} 6. e3 {[%emt 0:00:32]} c6 {[%emt 0:07:40]} 7. Bd3 {[%emt 0:01:38]} Qa5 {[%emt 0:04:35]} 8. Bxf6 {[%emt 0:03:21] D35: Queen's Gambit Declined: Exchange Variation.} (8. Bh4 $14) 8... Nxf6 $11 {[%emt 0:00:16]} 9. Nge2 {[%emt 0:01:24]} Bd6 {[%emt 0:04:21]} 10. Qc2 {[%emt 0:03:05] [#] Black is slightly better.} Be6 $146 {[%emt 0:04:36]} ({Predecessor:} 10... O-O 11. O-O h6 12. Ng3 Qc7 13. Rfc1 Qe7 14. Nf5 Bxf5 15. Bxf5 Rfd8 16. Rab1 Nd7 {½-½ (33) Acimovic,S (1523)-Brilej,J (1591) Moravske Toplice 2014}) 11. a3 {[%emt 0:05:15]} h5 {[%emt 0:12:26]} 12. h3 {[%emt 0:04:39]} h4 {[%emt 0:04:49]} 13. Nc1 {[%emt 0:19:53]} Nd7 {[%emt 0:09:03]} 14. Nb3 {[%emt 0:02:15]} Qd8 {[%emt 0:00:10]} 15. Bf5 {[%emt 0:10:15]} (15. Na4 {is more complex.} Qg5 16. O-O Bxh3 17. f4) 15... Qg5 {[%emt 0:03:18]} 16. Bxe6 {[%emt 0:00:10]} fxe6 {[%emt 0:00:04]} 17. O-O-O {[%emt 0:00:11]} Rf8 {[%emt 0:03:38]} (17... O-O-O {feels hotter.} 18. Nb5 Bb8 19. Rhg1 Rhf8) 18. f4 {[%emt 0:08:09]} Qg3 {[%emt 0:03:47]} (18... Qe7 $11) 19. Qe2 {[%emt 0:01:46]} (19. Rhf1 $14) 19... O-O-O {[%emt 0:02:38]} (19... g5 $15 {should be considered.}) 20. Rdf1 {[%emt 0:01:50]} Kb8 {[%emt 0:07:05]} 21. Kb1 {[%emt 0:00:17]} Rc8 {[%emt 0:01:07]} 22. Rf3 {[%emt 0:02:12]} Qg6+ {[%emt 0:00:12]} 23. Ka1 {[%emt 0:00:56]} Nb6 {[%emt 0:05:58]} 24. Rc1 {[%emt 0:03:30]} Nc4 {[%emt 0:03:46]} 25. Nd2 {[%emt 0:06:18]} b5 {[%emt 0:00:38]} 26. Nxc4 {[%emt 0:00:32]} bxc4 {[%emt 0:00:05]} 27. Qc2 {[%emt 0:00:26]} (27. g4 $11) 27... Rf6 {[%emt 0:07:41] Black is more active.} (27... Qxc2 $17 28. Rxc2 Kb7) 28. Qxg6 {[%emt 0:02:30]} Rxg6 {[%emt 0:00:05]} 29. Rg1 {[%emt 0:00:07]} Rh8 {[%emt 0:09:59]} 30. g4 {[%emt 0:01:06]} hxg3 {[%emt 0:00:04]} 31. Rfxg3 {[%emt 0:00:05]} Rxg3 {[%emt 0:00:12]} 32. Rxg3 $15 {[%emt 0:00:01][%mdl 4096] Endgame KRB-KRN} g5 {[%emt 0:00:06]} 33. Ne2 {[%emt 0:01:50]} Rh4 {[%emt 0:04:55]} (33... gxf4 $17 34. exf4 Rh4) 34. Rxg5 {[%emt 0:00:52]} (34. Rg4 $1 $11) 34... Rxh3 {[%emt 0:00:19]} 35. Rg3 {[%emt 0:00:05]} Rh2 {[%emt 0:02:04]} 36. Nc3 {[%emt 0:00:34]} Rh1+ {[%emt 0:00:24]} 37. Ka2 {[%emt 0:00:15]} Re1 {[%emt 0:00:45]} 38. Rf3 {[%emt 0:01:52]} Kc7 {[%emt 0:00:49]} 39. Rh3 {[%emt 0:00:13]} a6 {[%emt 0:00:18]} 40. Na4 {[%emt 0:01:10]} Kd7 {[%emt 0:00:25]} 41. Rh7+ {[%emt 0:31:36]} Ke8 {[%emt 0:03:47]} 42. Rh3 {[%emt 0:00:00]} Kf7 {[%emt 0:01:39]} 43. Rg3 {[%emt 0:00:00]} (43. Rh7+ $11 Kf6 44. Ra7) 43... Kf6 {[%emt 0:00:32]} (43... Be7 $17 44. Rh3 Kg6) 44. Nc3 {[%emt 0:00:00] This move loses the game for White.} (44. Nb6 $1 $15) 44... c5 $19 {[%emt 0:03:06][%cal Bc6c5,Bc5d4][%mdl 32]} 45. e4 $2 {[%emt 0:00:00]} (45. a4) 45... Bxf4 {[%emt 0:06:43]} 46. Rg4 {[%emt 0:00:00] [#]} cxd4 $1 {[%emt 0:00:42]} 47. Rxf4+ {[%emt 0:00:00] KRN-KR} Ke5 {[%emt 0:00:09]} 48. Rf2 {[%emt 0:07:53]} dxc3 {[%emt 0:00:07]} 49. exd5 {[%emt 0:00:07]} cxb2 {[%emt 0:01:11]} 50. Kxb2 {[%emt 0:00:06]} exd5 {[%emt 0:00:16] KR-KR} 51. Rh2 {[%emt 0:00:24]} Re3 {[%emt 0:01:01]} 52. Rc2 {[%emt 0:06:55]} Rb3+ {[%emt 0:02:04]} 53. Ka2 {[%emt 0:00:07]} Ke4 {[%emt 0:00:12] Black mates.} 54. Rc1 {[%emt 0:02:36]} Kd4 {[%emt 0:01:09]} 55. Rc2 {[%emt 0:00:21]} Kd3 {[%emt 0:00:22]} 56. Rh2 {[%emt 0:00:45]} d4 {[%emt 0:00:15][%cal Bd5d4,Bd4d3,Bd3d2][%mdl 32]} 57. Rh3+ {[%emt 0:00:41]} Kc2 {[%emt 0:00:01]} 58. Rh2+ {[%emt 0:00:08]} Kc3 {[%emt 0:00:13]} 59. Rh1 {[%emt 0:01:49]} d3 {[%emt 0:02:38]} 60. Rc1+ {[%emt 0:01:45]} Kd4 {[%emt 0:00:01]} 61. Re1 {[%emt 0:00:44]} d2 {[%emt 0:00:44]} 62. Rd1 {[%emt 0:00:43]} Kc3 {[%emt 0:00:53]} 63. Rh1 {[%emt 0:00:00]} Kc2 {[%emt 0:00:19]} 64. Rh2 {[%emt 0:00:00]} Kc1 {[%emt 0:00:09] Weighted Error Value: White=0.70/Black=0.17 (very precise)} 0-1

[Event "Slovakian-ch Youth 2022"]
[Site "Lubovna"]
[Date "2022.05.25"]
[Round "6.19"]
[White "Janik, Marek Tobias"]
[Black "Orgon, Patrik"]
[Result "1-0"]
[ECO "A21"]
[WhiteElo "1840"]
[BlackElo "1721"]
[Annotator "NA COMBH"]
[PlyCount "95"]
[EventDate "2022.05.22"]
[EventCountry "SVK"]
[SourceTitle "playchess.com"]
[Source "ChessBase"]
[SourceQuality "1"]
[TimeControl "40/5400+30:1800+30"]

1. c4 {[%emt 0:00:12]} e5 {[%emt 0:00:16]} 2. Nc3 {[%emt 0:00:04]} f5 {[%emt 0:00:18]} 3. g3 {[%emt 0:00:05]} Nf6 {[%emt 0:00:44]} 4. Bg2 {[%emt 0:00:04]} d6 {[%emt 0:00:25]} 5. e3 {[%emt 0:01:23]} c6 {[%emt 0:00:18]} 6. Nge2 {[%emt 0:00:04]} Be6 {[%emt 0:00:11]} 7. b3 {[%emt 0:00:13]} g6 {[%emt 0:02:13]} 8. Bb2 {[%emt 0:00:05]} Bg7 {[%emt 0:00:31]} 9. d4 {[%emt 0:02:50]} Qc7 {[%emt 0:03:55]} 10. O-O {[%emt 0:02:10]} O-O {[%emt 0:10:40]} 11. Rc1 {[%emt 0:05:39]} Na6 {[%emt 0:07:08]} 12. d5 {[%emt 0:06:01]} Bf7 {[%emt 0:08:13]} 13. e4 {[%emt 0:06:37]} cxd5 {[%emt 0:17:16]} 14. Nxd5 {[%emt 0:00:20]} Bxd5 {[%emt 0:02:50]} 15. exd5 {[%emt 0:01:26]} Rac8 {[%emt 0:06:20]} 16. Ba3 {[%emt 0:17:19]} Rfe8 {[%emt 0:04:13]} 17. b4 {[%emt 0:02:34]} Nd7 {[%emt 0:03:46]} 18. c5 {[%emt 0:10:50]} b6 {[%emt 0:17:38]} 19. c6 {[%emt 0:01:11]} Nf6 {[%emt 0:01:57]} 20. b5 {[%emt 0:01:08]} Nc5 {[%emt 0:00:28]} 21. Bxc5 {[%emt 0:00:36]} bxc5 {[%emt 0:00:11]} 22. Qa4 {[%emt 0:03:55]} Bh6 {[%emt 0:04:08]} 23. Rb1 {[%emt 0:07:39]} e4 {[%emt 0:01:18]} 24. Qc4 {[%emt 0:02:36]} Qa5 {[%emt 0:02:36]} 25. a4 {[%emt 0:04:04]} Re5 {[%emt 0:01:22]} 26. Rfd1 {[%emt 0:01:13]} Kf8 {[%emt 0:00:37]} 27. Nf4 {[%emt 0:00:55]} Bxf4 {[%emt 0:00:20]} 28. gxf4 {[%emt 0:00:02]} Re7 {[%emt 0:00:21]} 29. Rbc1 {[%emt 0:02:59]} Kf7 {[%emt 0:00:42]} 30. Bf1 {[%emt 0:00:57]} Nh5 {[%emt 0:00:22]} 31. Qc3 {[%emt 0:00:45]} Qxa4 {[%emt 0:01:03]} 32. Ra1 {[%emt 0:00:08]} Qb4 {[%emt 0:00:19]} 33. Qxb4 {[%emt 0:00:01]} cxb4 {[%emt 0:00:09]} 34. Rdb1 {[%emt 0:00:22]} Nxf4 {[%emt 0:00:44]} 35. Rxb4 {[%emt 0:00:05]} g5 {[%emt 0:00:52]} 36. Rba4 {[%emt 0:00:34]} Rcc7 {[%emt 0:00:13]} 37. Bc4 {[%emt 0:01:53]} h5 {[%emt 0:01:05]} 38. R1a2 {[%emt 0:02:25]} h4 {[%emt 0:00:33]} 39. R2a3 {[%emt 0:05:36]} h3 {[%emt 0:00:35]} 40. Kf1 {[%emt 0:00:47]} Ke8 {[%emt 0:02:28]} 41. Ra6 {[%emt 0:31:34]} g4 {[%emt 0:30:53]} 42. b6 {[%emt 0:00:32]} axb6 {[%emt 0:00:36]} 43. Rxb6 {[%emt 0:00:52]} Ra7 {[%emt 0:00:39]} 44. Rb8+ {[%emt 0:00:04]} Kf7 {[%emt 0:00:09]} 45. Rxa7 {[%emt 0:00:04]} Rxa7 {[%emt 0:00:15]} 46. Rb7+ {[%emt 0:00:03]} Kf6 {[%emt 0:00:00]} 47. Rxa7 {[%emt 0:00:00]} g3 {[%emt 0:00:00]} 48. fxg3 {[%emt 0:00:00]} 1-0

[Event "Slovakian-ch Youth 2022"]
[Site "Lubovna"]
[Date "2022.05.25"]
[Round "6.20"]
[White "Rakovsky, Jakub"]
[Black "Sevcik, Matej"]
[Result "1-0"]
[ECO "C55"]
[WhiteElo "1888"]
[BlackElo "1820"]
[Annotator "NA COMBH"]
[PlyCount "57"]
[EventDate "2022.05.22"]
[EventCountry "SVK"]
[SourceTitle "playchess.com"]
[Source "ChessBase"]
[SourceQuality "1"]
[TimeControl "40/5400+30:1800+30"]

1. e4 {[%emt 0:00:05]} Nc6 {[%emt 0:00:12]} 2. Nf3 {[%emt 0:00:19]} e5 {[%emt 0:00:49]} 3. Bc4 {[%emt 0:00:06]} Nf6 {[%emt 0:00:34]} 4. d3 {[%emt 0:00:06]} h6 {[%emt 0:00:46]} 5. Nbd2 {[%emt 0:02:36]} g5 {[%emt 0:03:46]} 6. h3 {[%emt 0:11:05]} Bg7 {[%emt 0:01:15]} 7. c3 {[%emt 0:01:21]} O-O {[%emt 0:07:47]} 8. Bb3 {[%emt 0:02:00]} d5 {[%emt 0:03:47]} 9. Qe2 {[%emt 0:02:26]} Be6 {[%emt 0:10:29]} 10. Nf1 {[%emt 0:06:31]} Qd7 {[%emt 0:13:06]} 11. g4 {[%emt 0:04:39]} dxe4 {[%emt 0:05:28]} 12. dxe4 {[%emt 0:01:29]} a5 {[%emt 0:01:17]} 13. Ng3 {[%emt 0:04:35]} a4 {[%emt 0:02:09]} 14. Bxe6 {[%emt 0:03:09]} fxe6 {[%emt 0:00:13]} 15. Be3 {[%emt 0:01:09]} Qf7 {[%emt 0:01:18]} 16. Bc5 {[%emt 0:05:31]} Rfd8 {[%emt 0:04:38]} 17. h4 {[%emt 0:01:37]} Qg6 {[%emt 0:01:22]} 18. hxg5 {[%emt 0:01:35]} hxg5 {[%emt 0:01:13]} 19. Be3 {[%emt 0:09:48]} Nxe4 {[%emt 0:03:42]} 20. Qc2 {[%emt 0:02:01]} a3 {[%emt 0:06:15]} 21. Nxe4 {[%emt 0:06:32]} axb2 {[%emt 0:00:41]} 22. Rb1 {[%emt 0:00:39]} Rxa2 {[%emt 0:01:10]} 23. Nfxg5 {[%emt 0:06:19]} Nd4 {[%emt 0:03:54]} 24. cxd4 {[%emt 0:03:12]} exd4 {[%emt 0:01:31]} 25. Qd3 {[%emt 0:04:19]} Ra1 {[%emt 0:01:39]} 26. Ke2 {[%emt 0:01:06]} Rd5 {[%emt 0:01:28]} 27. Rxa1 {[%emt 0:00:46]} bxa1=Q {[%emt 0:01:26]} 28. Rxa1 {[%emt 0:00:06]} dxe3 {[%emt 0:00:48]} 29. Nf6+ {[%emt 0:01:43]} 1-0

[Event "Slovakian-ch Youth 2022"]
[Site "Lubovna"]
[Date "2022.05.25"]
[Round "6.21"]
[White "Koska, Jiri"]
[Black "Baron, Patrik"]
[Result "1/2-1/2"]
[ECO "A07"]
[WhiteElo "1759"]
[BlackElo "1740"]
[Annotator "NA COMBH"]
[PlyCount "70"]
[EventDate "2022.05.22"]
[EventCountry "SVK"]
[SourceTitle "playchess.com"]
[Source "ChessBase"]
[SourceQuality "1"]
[TimeControl "40/5400+30:1800+30"]

1. Nf3 {[%emt 0:00:14]} d5 {[%emt 0:03:39]} 2. g3 {[%emt 0:00:07]} c6 {[%emt 0:00:32]} 3. Bg2 {[%emt 0:00:08]} Bg4 {[%emt 0:00:08]} 4. O-O {[%emt 0:00:15]} Nd7 {[%emt 0:00:08]} 5. d3 {[%emt 0:01:06]} Ngf6 {[%emt 0:00:20]} 6. Nbd2 {[%emt 0:00:11]} e5 {[%emt 0:00:08]} 7. e4 {[%emt 0:02:03]} Be7 {[%emt 0:00:09]} 8. Re1 {[%emt 0:01:41]} Qc7 {[%emt 0:04:50]} 9. h3 {[%emt 0:05:18]} Bh5 {[%emt 0:00:59]} 10. c3 {[%emt 0:01:26]} O-O {[%emt 0:01:27]} 11. Qc2 {[%emt 0:13:47]} Rfe8 {[%emt 0:08:28]} 12. Nf1 {[%emt 0:02:26]} Bg6 {[%emt 0:04:50]} 13. Nh4 {[%emt 0:03:36]} Rad8 {[%emt 0:07:06]} 14. Nxg6 {[%emt 0:01:49]} hxg6 {[%emt 0:00:35]} 15. Bg5 {[%emt 0:10:55]} Bc5 {[%emt 0:16:27]} 16. b4 {[%emt 0:07:02]} Bf8 {[%emt 0:03:52]} 17. Qb3 {[%emt 0:02:52]} Nb6 {[%emt 0:05:23]} 18. Rad1 {[%emt 0:16:04]} dxe4 {[%emt 0:08:20]} 19. Bxf6 {[%emt 0:05:28]} gxf6 {[%emt 0:01:19]} 20. dxe4 {[%emt 0:00:38]} Re6 {[%emt 0:07:06]} 21. Ne3 {[%emt 0:12:28]} Red6 {[%emt 0:01:26]} 22. Bf1 {[%emt 0:05:59]} Kg7 {[%emt 0:06:57]} 23. Nc4 {[%emt 0:01:51]} Nxc4 {[%emt 0:00:55]} 24. Bxc4 {[%emt 0:00:01]} b5 {[%emt 0:00:29]} 25. Be2 {[%emt 0:01:18]} Be7 {[%emt 0:07:19]} 26. Rxd6 {[%emt 0:00:17]} Rxd6 {[%emt 0:00:16]} 27. Rd1 {[%emt 0:00:04]} Kf8 {[%emt 0:06:09]} 28. Rxd6 {[%emt 0:01:43]} Qxd6 {[%emt 0:00:08]} 29. Qd1 {[%emt 0:00:06]} Qxd1+ {[%emt 0:00:36]} 30. Bxd1 {[%emt 0:00:01]} Ke8 {[%emt 0:01:01]} 31. Kf1 {[%emt 0:00:48]} Kd7 {[%emt 0:01:28]} 32. Ke2 {[%emt 0:00:05]} c5 {[%emt 0:00:37]} 33. bxc5 {[%emt 0:00:12]} Bxc5 {[%emt 0:00:13]} 34. g4 {[%emt 0:00:17]} g5 {[%emt 0:01:01]} 35. f3 {[%emt 0:00:12]} a5 {[%emt 0:01:04]} 1/2-1/2

[Event "Slovakian-ch Youth 2022"]
[Site "Lubovna"]
[Date "2022.05.25"]
[Round "6.22"]
[White "Horvath, Marek"]
[Black "Lakota, Jan"]
[Result "1-0"]
[ECO "B12"]
[WhiteElo "1801"]
[BlackElo "1488"]
[Annotator "NA COMBH"]
[PlyCount "48"]
[EventDate "2022.05.22"]
[EventCountry "SVK"]
[SourceTitle "playchess.com"]
[Source "ChessBase"]
[SourceQuality "1"]
[TimeControl "40/5400+30:1800+30"]

1. e4 {[%emt 0:00:05]} c6 {[%emt 0:00:06]} 2. d4 {[%emt 0:00:04]} d5 {[%emt 0:00:07]} 3. e5 {[%emt 0:00:02]} Bf5 {[%emt 0:00:34]} 4. h4 {[%emt 0:00:06]} c5 {[%emt 0:01:00]} 5. c3 {[%emt 0:01:33]} Nc6 {[%emt 0:02:57]} 6. Be3 {[%emt 0:02:35]} c4 {[%emt 0:06:51]} 7. g4 {[%emt 0:02:20]} Bd7 {[%emt 0:00:20]} 8. f4 {[%emt 0:02:01]} e6 {[%emt 0:01:53]} 9. h5 {[%emt 0:19:21]} b5 {[%emt 0:27:16]} 10. Bh3 {[%emt 0:04:10]} b4 {[%emt 0:09:35]} 11. Nd2 {[%emt 0:01:56]} a5 {[%emt 0:03:23]} 12. Ne2 {[%emt 0:00:34]} Be7 {[%emt 0:03:00]} 13. Nf3 {[%emt 0:02:48]} h6 {[%emt 0:03:41]} 14. f5 {[%emt 0:03:08]} Qc8 {[%emt 0:01:16]} 15. Qc2 {[%emt 0:03:02]} a4 {[%emt 0:01:59]} 16. Nf4 {[%emt 0:12:15]} b3 {[%emt 0:03:40]} 17. Qb1 {[%emt 0:00:45]} Na5 {[%emt 0:06:42]} 18. a3 {[%emt 0:00:09]} Ra6 {[%emt 0:02:27]} 19. fxe6 {[%emt 0:02:43]} Bxe6 {[%emt 0:06:55]} 20. Nxe6 {[%emt 0:00:22]} Qxe6 {[%emt 0:00:05]} 21. g5 {[%emt 0:01:08]} Qc6 {[%emt 0:00:20]} 22. e6 {[%emt 0:01:16]} f6 {[%emt 0:00:41]} 23. Qg6+ {[%emt 0:00:14]} Kd8 {[%emt 0:00:46]} 24. Qxg7 {[%emt 0:00:12]} Qd6 {[%emt 0:02:08]} 1-0